[Event "Early-Titled-Tuesday-Blitz-February-06-2024"]
[Site "Chess.com"]
[Date "2024.02.06"]
[Round "7"]
[White "Msb2"]
[Black "youngKID"]
[Result "0-1"]
[WhiteElo "2984"]
[BlackElo "2818"]
[TimeControl "180+1"]
[EndTime "9:17:46 PST"]
[Termination "youngKID won by checkmate"]

1. d4 {[%clk 0:03:00.9]} 1... Nf6 {[%clk 0:03:00.2]} 2. c4 {[%clk 0:03:01.6]}
2... g6 {[%clk 0:03:00.8]} 3. Nc3 {[%clk 0:03:02.2]} 3... Bg7 {[%clk 0:03:01.4]}
4. e4 {[%clk 0:03:02.7]} 4... d6 {[%clk 0:03:02.1]} 5. Nf3 {[%clk 0:03:03.5]}
5... O-O {[%clk 0:03:02.1]} 6. Be2 {[%clk 0:03:04.2]} 6... Bg4 {[%clk
0:03:02.6]} 7. Be3 {[%clk 0:03:04.8]} 7... Bxf3 {[%clk 0:03:01.8]} 8. Bxf3
{[%clk 0:03:05.7]} 8... Nc6 {[%clk 0:03:00.3]} 9. d5 {[%clk 0:03:04.5]} 9... Ne5
{[%clk 0:02:59.9]} 10. Be2 {[%clk 0:03:04.9]} 10... c6 {[%clk 0:03:00.6]} 11. f4
{[%clk 0:03:01.5]} 11... Ned7 {[%clk 0:03:00.5]} 12. h4 {[%clk 0:03:01.7]} 12...
cxd5 {[%clk 0:02:59.1]} 13. exd5 {[%clk 0:03:02.6]} 13... Re8 {[%clk 0:02:51.8]}
14. h5 {[%clk 0:02:55.4]} 14... e6 {[%clk 0:02:48.9]} 15. hxg6 {[%clk
0:02:54.5]} 15... hxg6 {[%clk 0:02:49.8]} 16. dxe6 {[%clk 0:02:43.9]} 16... Rxe6
{[%clk 0:02:50.7]} 17. Qd2 {[%clk 0:02:44.5]} 17... Qe7 {[%clk 0:02:34.1]} 18.
Bd4 {[%clk 0:02:12.6]} 18... Re8 {[%clk 0:02:31.2]} 19. O-O-O {[%clk 0:02:00]}
19... Rxe2 {[%clk 0:02:28]} 20. Nxe2 {[%clk 0:02:00.9]} 20... Qxe2 {[%clk
0:02:28.7]} 21. Qxe2 {[%clk 0:02:01.4]} 21... Rxe2 {[%clk 0:02:29.5]} 22. Rd2
{[%clk 0:01:51.3]} 22... Re4 {[%clk 0:02:26.8]} 23. g3 {[%clk 0:01:43.8]} 23...
Nh5 {[%clk 0:02:25.3]} 24. Bxg7 {[%clk 0:01:43.5]} 24... Kxg7 {[%clk 0:02:24.4]}
25. Rxd6 {[%clk 0:01:41.4]} 25... Rxc4+ {[%clk 0:02:21.7]} 26. Kb1 {[%clk
0:01:39.4]} 26... Ndf6 {[%clk 0:02:03.3]} 27. Rd3 {[%clk 0:01:32.9]} 27... Ne4
{[%clk 0:02:01.1]} 28. Rc1 {[%clk 0:01:22.2]} 28... Rb4 {[%clk 0:01:31.6]} 29.
a3 {[%clk 0:01:21.4]} 29... Rb5 {[%clk 0:01:31.8]} 30. Rc7 {[%clk 0:01:16.3]}
30... Nexg3 {[%clk 0:01:23.7]} 31. Rdd7 {[%clk 0:01:16.3]} 31... Rf5 {[%clk
0:01:24.1]} 32. Rxb7 {[%clk 0:01:16.6]} 32... a5 {[%clk 0:01:24.6]} 33. b4
{[%clk 0:01:13.4]} 33... axb4 {[%clk 0:01:25.5]} 34. axb4 {[%clk 0:01:14.3]}
34... Nxf4 {[%clk 0:01:18.4]} 35. b5 {[%clk 0:01:14.9]} 35... Ne6 {[%clk
0:01:19]} 36. Rd6 {[%clk 0:00:51.1]} 36... Ne4 {[%clk 0:01:03.5]} 37. Rxe6
{[%clk 0:00:14.1]} 37... Nc5 {[%clk 0:01:03.5]} 38. Ree7 {[%clk 0:00:11.9]}
38... Nxb7 {[%clk 0:01:03.8]} 39. Rxb7 {[%clk 0:00:12.8]} 39... g5 {[%clk
0:01:04.5]} 40. Kc2 {[%clk 0:00:13]} 40... g4 {[%clk 0:01:05]} 41. b6 {[%clk
0:00:11.5]} 41... g3 {[%clk 0:00:51.5]} 42. Rd7 {[%clk 0:00:11.7]} 42... g2
{[%clk 0:00:50.3]} 43. b7 {[%clk 0:00:07.5]} 43... Rc5+ {[%clk 0:00:42.5]} 44.
Kb2 {[%clk 0:00:05.1]} 44... Rb5+ {[%clk 0:00:42.3]} 45. Kc3 {[%clk 0:00:04.7]}
45... g1=Q {[%clk 0:00:43.2]} 46. Rd2 {[%clk 0:00:02.9]} 46... Qe3+ {[%clk
0:00:41.7]} 47. Kc2 {[%clk 0:00:03.4]} 47... Rb2+ {[%clk 0:00:41.1]} 48. Kc1
{[%clk 0:00:04.3]} 48... Qxd2# {[%clk 0:00:42]} 0-1

[Event "Early-Titled-Tuesday-Blitz-February-06-2024"]
[Site "Chess.com"]
[Date "2024.02.06"]
[Round "7"]
[White "LeoLV10"]
[Black "GustavoAOliveira"]
[Result "1-0"]
[WhiteElo "2495"]
[BlackElo "2333"]
[TimeControl "180+1"]
[EndTime "9:17:46 PST"]
[Termination "LeoLV10 won on time"]

1. e4 {[%clk 0:03:00.9]} 1... c5 {[%clk 0:02:58.2]} 2. Nf3 {[%clk 0:03:00.7]}
2... e6 {[%clk 0:02:58.1]} 3. d4 {[%clk 0:03:01]} 3... cxd4 {[%clk 0:02:59]} 4.
Nxd4 {[%clk 0:03:01.9]} 4... a6 {[%clk 0:02:58.9]} 5. Bd3 {[%clk 0:03:01.3]}
5... Nf6 {[%clk 0:02:58.7]} 6. O-O {[%clk 0:03:01.1]} 6... Qc7 {[%clk
0:02:58.5]} 7. Qe2 {[%clk 0:03:01.2]} 7... d6 {[%clk 0:02:55.9]} 8. c4 {[%clk
0:03:01.7]} 8... Be7 {[%clk 0:02:54.4]} 9. Nc3 {[%clk 0:03:01.7]} 9... O-O
{[%clk 0:02:55.3]} 10. Be3 {[%clk 0:02:59.8]} 10... Nbd7 {[%clk 0:02:54.8]} 11.
b3 {[%clk 0:02:57]} 11... b6 {[%clk 0:02:51.7]} 12. Rac1 {[%clk 0:02:56.7]}
12... Bb7 {[%clk 0:02:51.6]} 13. f3 {[%clk 0:02:56.6]} 13... Rac8 {[%clk
0:02:51]} 14. Bf2 {[%clk 0:02:51.4]} 14... Rfe8 {[%clk 0:02:43.6]} 15. f4 {[%clk
0:02:50.8]} 15... Qb8 {[%clk 0:02:40.9]} 16. Nf3 {[%clk 0:02:47.1]} 16... Nf8
{[%clk 0:02:27]} 17. h3 {[%clk 0:02:40]} 17... Bd8 {[%clk 0:02:21.2]} 18. Be3
{[%clk 0:02:34.5]} 18... Bc7 {[%clk 0:02:18.6]} 19. Nd2 {[%clk 0:02:18.9]} 19...
Qa8 {[%clk 0:02:04.9]} 20. Bd4 {[%clk 0:02:14.9]} 20... e5 {[%clk 0:02:03.9]}
21. fxe5 {[%clk 0:02:15.8]} 21... dxe5 {[%clk 0:02:03.5]} 22. Bf2 {[%clk
0:02:15.4]} 22... N6d7 {[%clk 0:01:55]} 23. Nd5 {[%clk 0:02:11.9]} 23... Ne6
{[%clk 0:01:49.5]} 24. Be3 {[%clk 0:01:58.4]} 24... Ndc5 {[%clk 0:01:38.6]} 25.
Bb1 {[%clk 0:01:55.7]} 25... Bd8 {[%clk 0:01:34.4]} 26. b4 {[%clk 0:01:53.2]}
26... Nd7 {[%clk 0:01:32.9]} 27. Qg4 {[%clk 0:01:49.4]} 27... Bc6 {[%clk
0:01:11.3]} 28. Bd3 {[%clk 0:01:37.8]} 28... Qb7 {[%clk 0:01:06.5]} 29. Qf3
{[%clk 0:01:35.9]} 29... Nf6 {[%clk 0:01:03.4]} 30. Qg3 {[%clk 0:01:31]} 30...
Bxd5 {[%clk 0:00:46.3]} 31. exd5 {[%clk 0:01:28.1]} 31... Nd4 {[%clk 0:00:41.3]}
32. Qf2 {[%clk 0:01:10.7]} 32... b5 {[%clk 0:00:30.7]} 33. d6 {[%clk 0:00:59]}
33... bxc4 {[%clk 0:00:15.7]} 34. Bxc4 {[%clk 0:00:59.9]} 34... Bb6 {[%clk
0:00:12.9]} 35. Kh2 {[%clk 0:00:55.4]} 35... Qd7 {[%clk 0:00:11.9]} 36. Bxa6
{[%clk 0:00:45.5]} 36... Rxc1 {[%clk 0:00:09.2]} 37. Rxc1 {[%clk 0:00:46.4]}
37... Qxd6 {[%clk 0:00:09.7]} 38. Bb5 {[%clk 0:00:42.3]} 38... Nxb5 {[%clk
0:00:07.1]} 39. Bxb6 {[%clk 0:00:39.7]} 39... Qxb4 {[%clk 0:00:07.4]} 40. Bc5
{[%clk 0:00:38.3]} 40... Qa4 {[%clk 0:00:05.2]} 41. Nc4 {[%clk 0:00:35.6]} 41...
h6 {[%clk 0:00:03.7]} 42. Qe3 {[%clk 0:00:31.6]} 42... e4 {[%clk 0:00:01.7]} 43.
a3 {[%clk 0:00:30.2]} 1-0

[Event "Early-Titled-Tuesday-Blitz-February-06-2024"]
[Site "Chess.com"]
[Date "2024.02.06"]
[Round "7"]
[White "djano"]
[Black "EvgenyBurmakin"]
[Result "1-0"]
[WhiteElo "2609"]
[BlackElo "2438"]
[TimeControl "180+1"]
[EndTime "9:17:49 PST"]
[Termination "djano won on time"]

1. e4 {[%clk 0:03:00.9]} 1... c5 {[%clk 0:02:53.4]} 2. Nc3 {[%clk 0:02:59.6]}
2... Nc6 {[%clk 0:02:51.3]} 3. Bb5 {[%clk 0:02:59.3]} 3... Nd4 {[%clk
0:02:51.2]} 4. Nf3 {[%clk 0:02:59.6]} 4... Nxb5 {[%clk 0:02:47.8]} 5. Nxb5
{[%clk 0:03:00.5]} 5... a6 {[%clk 0:02:47.5]} 6. Nc3 {[%clk 0:03:00.8]} 6... g6
{[%clk 0:02:44.4]} 7. d4 {[%clk 0:02:57.1]} 7... Bg7 {[%clk 0:02:41.7]} 8. e5
{[%clk 0:02:54.2]} 8... cxd4 {[%clk 0:02:38.1]} 9. Qxd4 {[%clk 0:02:55.1]} 9...
d6 {[%clk 0:02:33.6]} 10. Bf4 {[%clk 0:02:50.7]} 10... Bg4 {[%clk 0:02:17]} 11.
O-O-O {[%clk 0:02:22.8]} 11... Bxf3 {[%clk 0:02:16.1]} 12. gxf3 {[%clk 0:02:23]}
12... Qa5 {[%clk 0:02:16.6]} 13. Qd5 {[%clk 0:02:13.8]} 13... Qxd5 {[%clk
0:02:08.8]} 14. Nxd5 {[%clk 0:02:14.7]} 14... Rc8 {[%clk 0:01:43.8]} 15. exd6
{[%clk 0:02:08.1]} 15... exd6 {[%clk 0:01:29.8]} 16. Bxd6 {[%clk 0:01:56.8]}
16... f6 {[%clk 0:00:52.1]} 17. Rhe1+ {[%clk 0:01:44]} 17... Kf7 {[%clk
0:00:52.1]} 18. Rd3 {[%clk 0:01:29.9]} 18... Re8 {[%clk 0:00:21.6]} 19. Rde3
{[%clk 0:01:12]} 19... Rxe3 {[%clk 0:00:15.9]} 20. Rxe3 {[%clk 0:01:12.9]} 20...
Bh6 {[%clk 0:00:15.6]} 21. f4 {[%clk 0:01:13.4]} 21... g5 {[%clk 0:00:15.8]} 22.
Rb3 {[%clk 0:00:59.2]} 22... b5 {[%clk 0:00:15]} 23. fxg5 {[%clk 0:00:53.5]}
23... Bxg5+ {[%clk 0:00:14.1]} 24. Bf4 {[%clk 0:00:53.8]} 24... Ne7 {[%clk
0:00:12.3]} 25. Bxg5 {[%clk 0:00:52]} 25... fxg5 {[%clk 0:00:13.2]} 26. Rf3+
{[%clk 0:00:49]} 26... Ke6 {[%clk 0:00:13.1]} 27. Nc7+ {[%clk 0:00:48.8]} 27...
Kd7 {[%clk 0:00:12.1]} 28. Nxa6 {[%clk 0:00:48.9]} 28... Re8 {[%clk 0:00:08]}
29. Nc5+ {[%clk 0:00:47.5]} 29... Kc6 {[%clk 0:00:07.9]} 30. Ne4 {[%clk
0:00:42.1]} 30... g4 {[%clk 0:00:07.4]} 31. Rc3+ {[%clk 0:00:40.5]} 31... Kb6
{[%clk 0:00:06.5]} 32. Nf6 {[%clk 0:00:39.3]} 32... Rd8 {[%clk 0:00:05]} 33.
Nxg4 {[%clk 0:00:38.8]} 33... Ng6 {[%clk 0:00:04.5]} 34. Rd3 {[%clk 0:00:36.2]}
34... Re8 {[%clk 0:00:04.1]} 35. Re3 {[%clk 0:00:36.6]} 35... Rd8 {[%clk
0:00:03.4]} 36. c3 {[%clk 0:00:32.4]} 36... Nf4 {[%clk 0:00:03.1]} 37. Kc2
{[%clk 0:00:31.4]} 37... Kc5 {[%clk 0:00:02.6]} 38. Ne5 {[%clk 0:00:29]} 38...
Ng2 {[%clk 0:00:01.5]} 39. Nd3+ {[%clk 0:00:24.7]} 39... Kc6 {[%clk 0:00:01.6]}
40. Re6+ {[%clk 0:00:23.8]} 1-0

[Event "Early-Titled-Tuesday-Blitz-February-06-2024"]
[Site "Chess.com"]
[Date "2024.02.06"]
[Round "7"]
[White "Karttunen"]
[Black "Chemim21"]
[Result "1-0"]
[WhiteElo "2670"]
[BlackElo "2245"]
[TimeControl "180+1"]
[EndTime "9:17:49 PST"]
[Termination "Karttunen won on time"]

1. d4 {[%clk 0:03:00.9]} 1... d5 {[%clk 0:02:47.7]} 2. c4 {[%clk 0:02:55.9]}
2... e6 {[%clk 0:02:47.4]} 3. Nc3 {[%clk 0:02:54.9]} 3... Nf6 {[%clk 0:02:47.6]}
4. cxd5 {[%clk 0:02:52.2]} 4... Nxd5 {[%clk 0:02:43.8]} 5. e4 {[%clk 0:02:51.8]}
5... Nxc3 {[%clk 0:02:43.9]} 6. bxc3 {[%clk 0:02:52.3]} 6... c5 {[%clk
0:02:44.1]} 7. Nf3 {[%clk 0:02:51.8]} 7... cxd4 {[%clk 0:02:43.8]} 8. cxd4
{[%clk 0:02:51.6]} 8... Bb4+ {[%clk 0:02:42.5]} 9. Bd2 {[%clk 0:02:52]} 9...
Bxd2+ {[%clk 0:02:42.2]} 10. Qxd2 {[%clk 0:02:52.9]} 10... O-O {[%clk
0:02:41.9]} 11. Bc4 {[%clk 0:02:53]} 11... b6 {[%clk 0:02:41.6]} 12. O-O {[%clk
0:02:51.2]} 12... Bb7 {[%clk 0:02:41]} 13. Rfe1 {[%clk 0:02:34.5]} 13... Nc6
{[%clk 0:02:37.3]} 14. Rad1 {[%clk 0:02:16.6]} 14... Na5 {[%clk 0:02:32.2]} 15.
Bd3 {[%clk 0:02:14.8]} 15... Rc8 {[%clk 0:02:26.9]} 16. d5 {[%clk 0:01:43.6]}
16... exd5 {[%clk 0:02:21]} 17. e5 {[%clk 0:01:44.1]} 17... Nc4 {[%clk
0:02:08.7]} 18. Qf4 {[%clk 0:00:51.3]} 18... h6 {[%clk 0:02:03.1]} 19. Bf5
{[%clk 0:00:42.7]} 19... Rc7 {[%clk 0:01:43.6]} 20. Rd4 {[%clk 0:00:42.6]} 20...
Qe7 {[%clk 0:01:37.5]} 21. Qg3 {[%clk 0:00:40.6]} 21... Re8 {[%clk 0:01:30.2]}
22. Rg4 {[%clk 0:00:37.3]} 22... f6 {[%clk 0:01:26]} 23. e6 {[%clk 0:00:29.9]}
23... Nd6 {[%clk 0:01:20.7]} 24. Bg6 {[%clk 0:00:27.7]} 24... Rec8 {[%clk
0:01:15]} 25. h4 {[%clk 0:00:19.1]} 25... Ne4 {[%clk 0:01:10.4]} 26. Bf7+ {[%clk
0:00:18.1]} 26... Kh8 {[%clk 0:01:00.4]} 27. Rexe4 {[%clk 0:00:17.8]} 27... dxe4
{[%clk 0:00:59.2]} 28. Rxg7 {[%clk 0:00:18.2]} 28... Rc1+ {[%clk 0:00:53.6]} 29.
Ne1 {[%clk 0:00:16]} 29... Rxe1+ {[%clk 0:00:51.3]} 30. Kh2 {[%clk 0:00:15.9]}
30... Qc7 {[%clk 0:00:44.5]} 31. Rg8+ {[%clk 0:00:16]} 31... Rxg8 {[%clk
0:00:44]} 32. Qxc7 {[%clk 0:00:16.2]} 32... Rg7 {[%clk 0:00:19.2]} 33. Qb8+
{[%clk 0:00:15.7]} 33... Kh7 {[%clk 0:00:18.1]} 34. Qxb7 {[%clk 0:00:15]} 34...
e3 {[%clk 0:00:18.4]} 35. Qe4+ {[%clk 0:00:14.6]} 35... Kh8 {[%clk 0:00:17.4]}
36. fxe3 {[%clk 0:00:14.9]} 36... Re2 {[%clk 0:00:15.4]} 37. e7 {[%clk
0:00:15.1]} 1-0

[Event "Early-Titled-Tuesday-Blitz-February-06-2024"]
[Site "Chess.com"]
[Date "2024.02.06"]
[Round "7"]
[White "maurovargas01"]
[Black "AnaKuchava"]
[Result "0-1"]
[WhiteElo "1888"]
[BlackElo "2190"]
[TimeControl "180+1"]
[EndTime "9:17:50 PST"]
[Termination "AnaKuchava won on time"]

1. e4 {[%clk 0:02:58.8]} 1... c5 {[%clk 0:02:54]} 2. f4 {[%clk 0:02:58.7]} 2...
Nc6 {[%clk 0:02:47.9]} 3. Nf3 {[%clk 0:02:58.8]} 3... e6 {[%clk 0:02:43.4]} 4.
d3 {[%clk 0:02:54.4]} 4... d5 {[%clk 0:02:38.4]} 5. e5 {[%clk 0:02:54]} 5...
Nge7 {[%clk 0:02:36.2]} 6. g4 {[%clk 0:02:53.4]} 6... h5 {[%clk 0:02:34.5]} 7.
g5 {[%clk 0:02:52]} 7... Nf5 {[%clk 0:02:31.9]} 8. h4 {[%clk 0:02:49.9]} 8... g6
{[%clk 0:02:22.5]} 9. Bh3 {[%clk 0:02:47.9]} 9... Be7 {[%clk 0:02:17]} 10. Bxf5
{[%clk 0:02:47.1]} 10... exf5 {[%clk 0:02:17.9]} 11. O-O {[%clk 0:02:47.1]}
11... Be6 {[%clk 0:02:16]} 12. Nc3 {[%clk 0:02:45.8]} 12... Qd7 {[%clk
0:02:09.6]} 13. a3 {[%clk 0:02:44.3]} 13... d4 {[%clk 0:02:04.6]} 14. Ne2 {[%clk
0:02:25.2]} 14... Bd5 {[%clk 0:02:03.8]} 15. Kg2 {[%clk 0:02:21.2]} 15... O-O
{[%clk 0:02:00.2]} 16. Ng3 {[%clk 0:02:16.6]} 16... Kg7 {[%clk 0:01:49.4]} 17.
Bd2 {[%clk 0:02:11.7]} 17... b5 {[%clk 0:01:49.2]} 18. b4 {[%clk 0:02:09.3]}
18... c4 {[%clk 0:01:46.6]} 19. dxc4 {[%clk 0:01:58.2]} 19... bxc4 {[%clk
0:01:45.9]} 20. Be1 {[%clk 0:01:53.7]} 20... Be4 {[%clk 0:01:39.6]} 21. Nxe4
{[%clk 0:01:40.4]} 21... fxe4 {[%clk 0:01:40.5]} 22. Nh2 {[%clk 0:01:26.5]}
22... e3 {[%clk 0:01:28.5]} 23. Qf3 {[%clk 0:01:13.4]} 23... Rad8 {[%clk
0:01:16.7]} 24. c3 {[%clk 0:01:10.5]} 24... Qf5 {[%clk 0:00:56.4]} 25. cxd4
{[%clk 0:01:04.6]} 25... Nxd4 {[%clk 0:00:54.5]} 26. Qxe3 {[%clk 0:00:59.9]}
26... Nc2 {[%clk 0:00:51.2]} 27. Qc3 {[%clk 0:00:43.9]} 27... Nxa1 {[%clk
0:00:45.6]} 28. Qxa1 {[%clk 0:00:43.6]} 28... Qe4+ {[%clk 0:00:42.9]} 29. Nf3
{[%clk 0:00:29.3]} 29... Qxf4 {[%clk 0:00:34.5]} 30. Bg3 {[%clk 0:00:28.1]}
30... Qe4 {[%clk 0:00:29]} 31. e6+ {[%clk 0:00:23.9]} 31... Kh7 {[%clk
0:00:23.5]} 32. Re1 {[%clk 0:00:12]} 32... Rd2+ {[%clk 0:00:20.6]} 33. Bf2
{[%clk 0:00:08.4]} 33... Qg4+ {[%clk 0:00:19.3]} 34. Kf1 {[%clk 0:00:01.2]}
34... Qxf3 {[%clk 0:00:18.4]} 35. Qd4 {[%clk 0:00:01.4]} 35... Qh3+ {[%clk
0:00:16.2]} 0-1

[Event "Early-Titled-Tuesday-Blitz-February-06-2024"]
[Site "Chess.com"]
[Date "2024.02.06"]
[Round "7"]
[White "jcibarra"]
[Black "Rud_Makarian"]
[Result "1-0"]
[WhiteElo "2892"]
[BlackElo "3022"]
[TimeControl "180+1"]
[EndTime "9:17:51 PST"]
[Termination "jcibarra won by resignation"]

1. e4 {[%clk 0:03:00.9]} 1... c5 {[%clk 0:02:59.7]} 2. Nf3 {[%clk 0:03:01.4]}
2... e6 {[%clk 0:03:00.1]} 3. d4 {[%clk 0:03:00.3]} 3... cxd4 {[%clk 0:03:01]}
4. Nxd4 {[%clk 0:03:00.9]} 4... Nc6 {[%clk 0:03:01.7]} 5. Nc3 {[%clk 0:03:00.9]}
5... a6 {[%clk 0:03:02.1]} 6. Be3 {[%clk 0:02:58.3]} 6... Nf6 {[%clk 0:03:01.9]}
7. f4 {[%clk 0:02:57.9]} 7... d6 {[%clk 0:02:56.8]} 8. Qf3 {[%clk 0:02:53.6]}
8... Qc7 {[%clk 0:02:52.6]} 9. O-O-O {[%clk 0:02:53.6]} 9... Nxd4 {[%clk
0:02:42.6]} 10. Rxd4 {[%clk 0:02:45.4]} 10... b5 {[%clk 0:02:35.3]} 11. f5
{[%clk 0:02:19.7]} 11... e5 {[%clk 0:02:30.2]} 12. Rd1 {[%clk 0:02:16.7]} 12...
Bb7 {[%clk 0:02:26.5]} 13. Kb1 {[%clk 0:02:13.2]} 13... Rc8 {[%clk 0:02:23.7]}
14. Bd3 {[%clk 0:02:13.8]} 14... Be7 {[%clk 0:02:03.4]} 15. g4 {[%clk
0:02:12.3]} 15... b4 {[%clk 0:01:57.8]} 16. Nd5 {[%clk 0:02:10.4]} 16... Nxd5
{[%clk 0:01:53.9]} 17. exd5 {[%clk 0:02:11.3]} 17... Qd8 {[%clk 0:01:31.3]} 18.
Rhf1 {[%clk 0:01:53.2]} 18... h6 {[%clk 0:01:20.4]} 19. Qe4 {[%clk 0:01:40]}
19... Bg5 {[%clk 0:01:14.9]} 20. Bxg5 {[%clk 0:01:36.5]} 20... hxg5 {[%clk
0:01:12.3]} 21. Qxb4 {[%clk 0:01:37.1]} 21... Rb8 {[%clk 0:00:54.9]} 22. Rf2
{[%clk 0:01:26.6]} 22... f6 {[%clk 0:00:51.8]} 23. c4 {[%clk 0:01:10.3]} 23...
Qc7 {[%clk 0:00:38]} 24. Be4 {[%clk 0:01:07]} 24... Ke7 {[%clk 0:00:27.1]} 25.
Qa3 {[%clk 0:00:55.4]} 25... Qc5 {[%clk 0:00:20.5]} 26. Qxc5 {[%clk 0:00:52.2]}
26... dxc5 {[%clk 0:00:21.4]} 27. Rd3 {[%clk 0:00:43.2]} 27... Kd6 {[%clk
0:00:19]} 28. h3 {[%clk 0:00:43.7]} 28... Bc8 {[%clk 0:00:18.2]} 29. Rff3 {[%clk
0:00:43.9]} 29... Bd7 {[%clk 0:00:17.3]} 30. Rb3 {[%clk 0:00:42.9]} 30... a5
{[%clk 0:00:15.9]} 31. Rxb8 {[%clk 0:00:39.4]} 31... Rxb8 {[%clk 0:00:16.8]} 32.
Ra3 {[%clk 0:00:36.7]} 32... Rb4 {[%clk 0:00:16]} 33. Rxa5 {[%clk 0:00:28.8]}
33... Rxc4 {[%clk 0:00:16.2]} 34. Ra6+ {[%clk 0:00:29]} 34... Kc7 {[%clk
0:00:07.5]} 35. d6+ {[%clk 0:00:29.9]} 35... Kd8 {[%clk 0:00:07]} 36. Ra8+
{[%clk 0:00:29.9]} 36... Bc8 {[%clk 0:00:07.5]} 37. Bd5 {[%clk 0:00:27.1]} 37...
Rd4 {[%clk 0:00:07.6]} 38. Be6 {[%clk 0:00:27.7]} 38... Rxd6 {[%clk 0:00:08.3]}
39. Rxc8+ {[%clk 0:00:27.9]} 39... Ke7 {[%clk 0:00:09.2]} 40. Rc7+ {[%clk
0:00:27.9]} 40... Kf8 {[%clk 0:00:09.6]} 41. Rxc5 {[%clk 0:00:24.9]} 41... Rd3
{[%clk 0:00:09]} 42. Rc3 {[%clk 0:00:24.6]} 42... Rd1+ {[%clk 0:00:09]} 43. Kc2
{[%clk 0:00:25.2]} 43... Ke7 {[%clk 0:00:09.3]} 44. Kxd1 {[%clk 0:00:24.9]} 1-0

[Event "Early-Titled-Tuesday-Blitz-February-06-2024"]
[Site "Chess.com"]
[Date "2024.02.06"]
[Round "7"]
[White "Mackster23"]
[Black "Vaathi_Coming"]
[Result "1-0"]
[WhiteElo "2755"]
[BlackElo "2923"]
[TimeControl "180+1"]
[EndTime "9:17:53 PST"]
[Termination "Mackster23 won on time"]

1. e4 {[%clk 0:02:50.6]} 1... e5 {[%clk 0:02:59.3]} 2. Nf3 {[%clk 0:02:50.8]}
2... Nc6 {[%clk 0:02:59]} 3. Bc4 {[%clk 0:02:51.4]} 3... Bc5 {[%clk 0:02:57.6]}
4. d3 {[%clk 0:02:48.1]} 4... d6 {[%clk 0:02:56.8]} 5. a4 {[%clk 0:02:42.7]}
5... f5 {[%clk 0:02:56.6]} 6. Ng5 {[%clk 0:02:29.3]} 6... Qf6 {[%clk 0:02:54.6]}
7. Nf7 {[%clk 0:02:24.1]} 7... fxe4 {[%clk 0:02:50.7]} 8. O-O {[%clk 0:02:23.9]}
8... Nh6 {[%clk 0:02:41]} 9. Bxh6 {[%clk 0:01:48.1]} 9... Rf8 {[%clk 0:02:40]}
10. Be3 {[%clk 0:01:29.7]} 10... Qg6 {[%clk 0:02:07.5]} 11. Kh1 {[%clk
0:01:03.7]} 11... Bg4 {[%clk 0:02:03]} 12. Qd2 {[%clk 0:01:01.8]} 12... Bxe3
{[%clk 0:01:56.5]} 13. fxe3 {[%clk 0:00:59.6]} 13... Be6 {[%clk 0:01:56.1]} 14.
Nxd6+ {[%clk 0:00:43.7]} 14... cxd6 {[%clk 0:01:46.5]} 15. Rxf8+ {[%clk
0:00:44.2]} 15... Kxf8 {[%clk 0:01:47.4]} 16. Bxe6 {[%clk 0:00:43.4]} 16... Qxe6
{[%clk 0:01:48.3]} 17. dxe4 {[%clk 0:00:43.8]} 17... Kg8 {[%clk 0:01:35.7]} 18.
Nc3 {[%clk 0:00:44.2]} 18... Rf8 {[%clk 0:01:36]} 19. Rd1 {[%clk 0:00:43.7]}
19... h6 {[%clk 0:01:33.7]} 20. h3 {[%clk 0:00:43.7]} 20... Kh7 {[%clk
0:01:29.9]} 21. Kg1 {[%clk 0:00:39.8]} 21... Rf6 {[%clk 0:01:20]} 22. Nd5 {[%clk
0:00:33.4]} 22... Rf7 {[%clk 0:01:18.8]} 23. Rf1 {[%clk 0:00:29.6]} 23... Rxf1+
{[%clk 0:01:16.7]} 24. Kxf1 {[%clk 0:00:30.5]} 24... Qg6 {[%clk 0:01:17.1]} 25.
Qd3 {[%clk 0:00:26.4]} 25... Nd8 {[%clk 0:01:17.7]} 26. Kg1 {[%clk 0:00:23.6]}
26... Ne6 {[%clk 0:01:17.4]} 27. Ne7 {[%clk 0:00:22.5]} 27... Qg3 {[%clk
0:00:58.5]} 28. Nf5 {[%clk 0:00:20.6]} 28... Qe1+ {[%clk 0:00:46.8]} 29. Kh2
{[%clk 0:00:20.9]} 29... Ng5 {[%clk 0:00:26.9]} 30. h4 {[%clk 0:00:10.5]} 30...
Nf7 {[%clk 0:00:17.4]} 31. Qd5 {[%clk 0:00:08.8]} 31... Kg8 {[%clk 0:00:10.8]}
32. Qe6 {[%clk 0:00:08.7]} 32... Qf2 {[%clk 0:00:03.6]} 33. Qe8+ {[%clk
0:00:07.2]} 33... Kh7 {[%clk 0:00:04.2]} 34. Qxf7 {[%clk 0:00:07.5]} 1-0

[Event "Early-Titled-Tuesday-Blitz-February-06-2024"]
[Site "Chess.com"]
[Date "2024.02.06"]
[Round "7"]
[White "Irina_Mikhaylova"]
[Black "ChessBliss09"]
[Result "1-0"]
[WhiteElo "2324"]
[BlackElo "2135"]
[TimeControl "180+1"]
[EndTime "9:17:53 PST"]
[Termination "Irina_Mikhaylova won by checkmate"]

1. d4 {[%clk 0:02:50.5]} 1... Nf6 {[%clk 0:02:59.3]} 2. Nf3 {[%clk 0:02:50.5]}
2... d5 {[%clk 0:02:59]} 3. c4 {[%clk 0:02:50.7]} 3... c6 {[%clk 0:02:59.2]} 4.
cxd5 {[%clk 0:02:51.1]} 4... cxd5 {[%clk 0:02:59.6]} 5. Nc3 {[%clk 0:02:51.3]}
5... Nc6 {[%clk 0:03:00.3]} 6. Bf4 {[%clk 0:02:51]} 6... e6 {[%clk 0:03:00.7]}
7. e3 {[%clk 0:02:51.1]} 7... a6 {[%clk 0:02:59.3]} 8. Bd3 {[%clk 0:02:50.8]}
8... Bd6 {[%clk 0:02:59.4]} 9. Bg3 {[%clk 0:02:50.6]} 9... O-O {[%clk
0:02:58.7]} 10. Rc1 {[%clk 0:02:49.3]} 10... Qe7 {[%clk 0:02:29.5]} 11. Qe2
{[%clk 0:02:46.3]} 11... Bd7 {[%clk 0:02:28.7]} 12. O-O {[%clk 0:02:46.4]} 12...
Rfc8 {[%clk 0:02:26.5]} 13. Nb1 {[%clk 0:02:43.1]} 13... Nb4 {[%clk 0:02:24.2]}
14. Nc3 {[%clk 0:02:36.1]} 14... Nxd3 {[%clk 0:02:18.6]} 15. Qxd3 {[%clk
0:02:36.1]} 15... Bb4 {[%clk 0:02:19]} 16. Rfd1 {[%clk 0:02:33.2]} 16... Bxc3
{[%clk 0:02:13.5]} 17. Rxc3 {[%clk 0:02:33.4]} 17... Ne4 {[%clk 0:02:13.7]} 18.
Rcc1 {[%clk 0:02:20.1]} 18... Bb5 {[%clk 0:02:12.1]} 19. Qb1 {[%clk 0:02:06.3]}
19... Be2 {[%clk 0:02:04.3]} 20. Rxc8+ {[%clk 0:02:06]} 20... Rxc8 {[%clk
0:02:03.4]} 21. Rc1 {[%clk 0:02:06.2]} 21... Qd8 {[%clk 0:01:51.2]} 22. Rc2
{[%clk 0:02:01.5]} 22... Bc4 {[%clk 0:01:29.8]} 23. Qc1 {[%clk 0:01:38.3]} 23...
Rc6 {[%clk 0:01:20.6]} 24. Ne5 {[%clk 0:01:29.1]} 24... Rc8 {[%clk 0:00:57.1]}
25. b3 {[%clk 0:01:21.1]} 25... f6 {[%clk 0:00:48]} 26. Nf3 {[%clk 0:01:09.4]}
26... b5 {[%clk 0:00:47]} 27. Nd2 {[%clk 0:00:45.4]} 27... Nxg3 {[%clk
0:00:17.9]} 28. hxg3 {[%clk 0:00:44.9]} 28... Qa5 {[%clk 0:00:16.7]} 29. bxc4
{[%clk 0:00:41.6]} 29... bxc4 {[%clk 0:00:14.8]} 30. Nb3 {[%clk 0:00:37.5]}
30... Qb4 {[%clk 0:00:12.5]} 31. Nc5 {[%clk 0:00:37.2]} 31... e5 {[%clk
0:00:11.6]} 32. Nxa6 {[%clk 0:00:29.8]} 32... Qa5 {[%clk 0:00:11.4]} 33. Nc5
{[%clk 0:00:30]} 33... exd4 {[%clk 0:00:09.9]} 34. exd4 {[%clk 0:00:30.5]} 34...
Re8 {[%clk 0:00:08.8]} 35. Rd2 {[%clk 0:00:24.5]} 35... Qb4 {[%clk 0:00:07.2]}
36. Kh2 {[%clk 0:00:23.1]} 36... c3 {[%clk 0:00:06.4]} 37. Rd3 {[%clk
0:00:18.5]} 37... Re2 {[%clk 0:00:05.3]} 38. Rxc3 {[%clk 0:00:17.6]} 38... Rxf2
{[%clk 0:00:04.1]} 39. Qe3 {[%clk 0:00:17.8]} 39... Rxa2 {[%clk 0:00:03.7]} 40.
Qe8# {[%clk 0:00:17]} 1-0